[Event "Late-Titled-Tuesday-Blitz-September-05-2023"]
[Site "Chess.com"]
[Date "2023.09.05"]
[Round "4"]
[White "canary2016"]
[Black "FredddieCroderg"]
[Result "0-1"]
[WhiteElo "2034"]
[BlackElo "2304"]
[TimeControl "180+1"]
[EndTime "14:39:44 PDT"]
[Termination "FredddieCroderg won on time"]

1. e4 {[%clk 0:03:00.9]} 1... c5 {[%clk 0:02:58.2]} 2. Nf3 {[%clk 0:02:59.3]}
2... d6 {[%clk 0:02:58.6]} 3. d4 {[%clk 0:02:58.3]} 3... cxd4 {[%clk 0:02:59.5]}
4. Nxd4 {[%clk 0:02:57.5]} 4... Nf6 {[%clk 0:02:59.9]} 5. Nc3 {[%clk 0:02:57.3]}
5... g6 {[%clk 0:03:00.4]} 6. Be3 {[%clk 0:02:54.2]} 6... Bg7 {[%clk 0:03:00.7]}
7. Be2 {[%clk 0:02:52.2]} 7... O-O {[%clk 0:03:01]} 8. O-O {[%clk 0:02:51.5]}
8... Nc6 {[%clk 0:03:01.6]} 9. Qd2 {[%clk 0:02:50.1]} 9... Ng4 {[%clk
0:02:47.7]} 10. Bxg4 {[%clk 0:02:43.2]} 10... Bxg4 {[%clk 0:02:48.6]} 11. h3
{[%clk 0:02:38.9]} 11... Bd7 {[%clk 0:02:48.1]} 12. Nd5 {[%clk 0:02:34.2]} 12...
Ne5 {[%clk 0:02:45.6]} 13. Qe2 {[%clk 0:02:31.2]} 13... Rc8 {[%clk 0:02:40.5]}
14. Rac1 {[%clk 0:02:30.3]} 14... Nc4 {[%clk 0:02:34.6]} 15. b3 {[%clk
0:02:23.3]} 15... Nxe3 {[%clk 0:02:32.9]} 16. Qxe3 {[%clk 0:02:23.7]} 16... e6
{[%clk 0:02:16.4]} 17. Nb4 {[%clk 0:02:19.6]} 17... Qb6 {[%clk 0:01:55.5]} 18.
c3 {[%clk 0:01:54.9]} 18... a5 {[%clk 0:01:51]} 19. Nd3 {[%clk 0:01:43.2]} 19...
Rc7 {[%clk 0:01:32.5]} 20. Nb2 {[%clk 0:01:41.9]} 20... Rfc8 {[%clk 0:01:29]}
21. Nc4 {[%clk 0:01:39.5]} 21... Qa6 {[%clk 0:01:25.7]} 22. Nf3 {[%clk
0:01:28.7]} 22... b5 {[%clk 0:01:18.4]} 23. Ncd2 {[%clk 0:01:21]} 23... Rxc3
{[%clk 0:01:15.2]} 24. Rxc3 {[%clk 0:01:19.8]} 24... Rxc3 {[%clk 0:01:16.1]} 25.
Qe2 {[%clk 0:01:18.4]} 25... Qc6 {[%clk 0:01:13.2]} 26. e5 {[%clk 0:01:05.6]}
26... Rc2 {[%clk 0:01:03.4]} 27. exd6 {[%clk 0:01:01.6]} 27... Qxd6 {[%clk
0:01:04.3]} 28. Ne4 {[%clk 0:00:58.6]} 28... Rxe2 {[%clk 0:00:49.9]} 29. Nxd6
{[%clk 0:00:58.4]} 29... Rxa2 {[%clk 0:00:49.5]} 30. Ne4 {[%clk 0:00:43.1]}
30... Ra1 {[%clk 0:00:42]} 31. Nc5 {[%clk 0:00:35.2]} 31... Bc6 {[%clk
0:00:39.4]} 32. Nd2 {[%clk 0:00:33.2]} 32... a4 {[%clk 0:00:35.7]} 33. bxa4
{[%clk 0:00:26.3]} 33... bxa4 {[%clk 0:00:36.6]} 34. Nc4 {[%clk 0:00:25.2]}
34... Bd5 {[%clk 0:00:29.1]} 35. Ne3 {[%clk 0:00:14.9]} 35... Rxf1+ {[%clk
0:00:19.6]} 36. Kxf1 {[%clk 0:00:13.2]} 36... a3 {[%clk 0:00:19.5]} 37. Nc2
{[%clk 0:00:08.4]} 37... a2 {[%clk 0:00:18.7]} 0-1

[Event "Late-Titled-Tuesday-Blitz-September-05-2023"]
[Site "Chess.com"]
[Date "2023.09.05"]
[Round "4"]
[White "Rinqed222"]
[Black "Giorno"]
[Result "0-1"]
[WhiteElo "2227"]
[BlackElo "2455"]
[TimeControl "180+1"]
[EndTime "14:39:48 PDT"]
[Termination "Giorno won on time"]

1. e4 {[%clk 0:03:00.9]} 1... Nc6 {[%clk 0:02:51.8]} 2. Nf3 {[%clk 0:02:59.7]}
2... d6 {[%clk 0:02:50.6]} 3. d4 {[%clk 0:02:59.3]} 3... Bg4 {[%clk 0:02:50]} 4.
d5 {[%clk 0:02:47.5]} 4... Bxf3 {[%clk 0:02:46.7]} 5. gxf3 {[%clk 0:02:33]} 5...
Nb8 {[%clk 0:02:45.2]} 6. Be3 {[%clk 0:02:22.7]} 6... c5 {[%clk 0:02:41.6]} 7.
Nc3 {[%clk 0:02:16.8]} 7... a6 {[%clk 0:02:39.7]} 8. a4 {[%clk 0:02:15.5]} 8...
Nd7 {[%clk 0:02:38.8]} 9. a5 {[%clk 0:02:13.5]} 9... g6 {[%clk 0:02:37.2]} 10.
Qd2 {[%clk 0:02:11.5]} 10... Bg7 {[%clk 0:02:34.7]} 11. h4 {[%clk 0:02:06.5]}
11... h5 {[%clk 0:02:18.5]} 12. f4 {[%clk 0:01:55.3]} 12... Ngf6 {[%clk
0:02:00.8]} 13. f3 {[%clk 0:01:55.5]} 13... b5 {[%clk 0:01:46.2]} 14. axb6
{[%clk 0:01:30.3]} 14... Qxb6 {[%clk 0:01:45.5]} 15. b3 {[%clk 0:01:24.3]} 15...
Qb7 {[%clk 0:01:38.3]} 16. Rg1 {[%clk 0:01:16.2]} 16... Nb6 {[%clk 0:01:30.1]}
17. f5 {[%clk 0:01:14.1]} 17... Nfd7 {[%clk 0:01:26.8]} 18. fxg6 {[%clk
0:01:12]} 18... fxg6 {[%clk 0:01:26.2]} 19. Rxg6 {[%clk 0:01:07.5]} 19... Ne5
{[%clk 0:01:25.6]} 20. Qg2 {[%clk 0:01:06.7]} 20... Nxg6 {[%clk 0:01:06.6]} 21.
Qxg6+ {[%clk 0:01:07.3]} 21... Kf8 {[%clk 0:01:05]} 22. Kd2 {[%clk 0:00:48.4]}
22... Qc8 {[%clk 0:00:35.9]} 23. Be2 {[%clk 0:00:40.7]} 23... Qe8 {[%clk
0:00:34.7]} 24. Qg3 {[%clk 0:00:29.5]} 24... Qf7 {[%clk 0:00:33.6]} 25. Rxa6
{[%clk 0:00:23.9]} 25... Rxa6 {[%clk 0:00:32.3]} 26. Bxa6 {[%clk 0:00:24.8]}
26... Qf6 {[%clk 0:00:30.1]} 27. Ne2 {[%clk 0:00:15]} 27... Bh6 {[%clk
0:00:29.7]} 28. Bg5 {[%clk 0:00:10.2]} 28... Bxg5+ {[%clk 0:00:27.9]} 29. hxg5
{[%clk 0:00:11.1]} 29... Qa1 {[%clk 0:00:22]} 30. Bd3 {[%clk 0:00:05]} 30... Kg7
{[%clk 0:00:20]} 31. f4 {[%clk 0:00:04.8]} 31... c4 {[%clk 0:00:18.7]} 32. bxc4
{[%clk 0:00:02.7]} 32... Rc8 {[%clk 0:00:16]} 33. f5 {[%clk 0:00:01.5]} 33...
Nxc4+ {[%clk 0:00:15.6]} 34. Bxc4 {[%clk 0:00:01.2]} 34... Rxc4 {[%clk
0:00:16.5]} 35. f6+ {[%clk 0:00:01.9]} 35... Kg8 {[%clk 0:00:13.7]} 0-1

[Event "Late-Titled-Tuesday-Blitz-September-05-2023"]
[Site "Chess.com"]
[Date "2023.09.05"]
[Round "4"]
[White "jcibarra"]
[Black "chessS1r"]
[Result "1-0"]
[WhiteElo "2906"]
[BlackElo "2592"]
[TimeControl "180+1"]
[EndTime "14:39:49 PDT"]
[Termination "jcibarra won by resignation"]

1. e4 {[%clk 0:03:00.9]} 1... c5 {[%clk 0:02:59.3]} 2. Nf3 {[%clk 0:03:01]} 2...
e6 {[%clk 0:02:59.5]} 3. d4 {[%clk 0:03:01.2]} 3... cxd4 {[%clk 0:03:00.4]} 4.
Nxd4 {[%clk 0:03:01.8]} 4... Nf6 {[%clk 0:02:59.4]} 5. Nc3 {[%clk 0:03:02.2]}
5... Nc6 {[%clk 0:02:59.9]} 6. Ndb5 {[%clk 0:03:01.8]} 6... Bb4 {[%clk
0:02:58.3]} 7. e5 {[%clk 0:03:01.7]} 7... Nd5 {[%clk 0:02:35.9]} 8. Qg4 {[%clk
0:02:54.8]} 8... g6 {[%clk 0:02:26.9]} 9. Qg3 {[%clk 0:02:39.4]} 9... f6 {[%clk
0:01:50.6]} 10. Nd6+ {[%clk 0:02:32.5]} 10... Bxd6 {[%clk 0:01:48.9]} 11. exd6
{[%clk 0:02:32.7]} 11... Nxc3 {[%clk 0:01:49.3]} 12. Qxc3 {[%clk 0:02:20.6]}
12... Qa5 {[%clk 0:01:48.5]} 13. Qxa5 {[%clk 0:02:18.3]} 13... Nxa5 {[%clk
0:01:49.4]} 14. Bd2 {[%clk 0:02:17]} 14... Nc6 {[%clk 0:01:49]} 15. O-O-O {[%clk
0:02:17.3]} 15... b6 {[%clk 0:01:47.9]} 16. f4 {[%clk 0:02:16.5]} 16... Bb7
{[%clk 0:01:45]} 17. Bc3 {[%clk 0:02:14.6]} 17... Kf7 {[%clk 0:01:44.7]} 18. g4
{[%clk 0:02:11.7]} 18... Nb4 {[%clk 0:01:35.9]} 19. Rg1 {[%clk 0:02:02.3]} 19...
Nxa2+ {[%clk 0:01:35.4]} 20. Kd2 {[%clk 0:01:57.7]} 20... Nxc3 {[%clk
0:01:36.3]} 21. Kxc3 {[%clk 0:01:57.9]} 21... Rac8+ {[%clk 0:01:36]} 22. Kb3
{[%clk 0:01:54.9]} 22... Rc5 {[%clk 0:01:34.8]} 23. c4 {[%clk 0:01:49.8]} 23...
Rhc8 {[%clk 0:01:32.5]} 24. Ka2 {[%clk 0:01:33.3]} 24... a5 {[%clk 0:01:23.9]}
25. b3 {[%clk 0:01:29.9]} 25... g5 {[%clk 0:01:10]} 26. fxg5 {[%clk 0:01:27.7]}
26... Rxg5 {[%clk 0:01:10.1]} 27. Be2 {[%clk 0:01:24.5]} 27... Re5 {[%clk
0:01:01.5]} 28. Bd3 {[%clk 0:01:22.3]} 28... Be4 {[%clk 0:00:57.3]} 29. Bf1
{[%clk 0:01:12.3]} 29... Bg6 {[%clk 0:00:40.8]} 30. Rd2 {[%clk 0:01:08.8]} 30...
Re3 {[%clk 0:00:31.5]} 31. h4 {[%clk 0:01:00.3]} 31... h6 {[%clk 0:00:31.3]} 32.
Be2 {[%clk 0:01:00.2]} 32... Rc5 {[%clk 0:00:30.5]} 33. Rf1 {[%clk 0:00:58.7]}
33... Rce5 {[%clk 0:00:29.8]} 34. Bd1 {[%clk 0:00:58.1]} 34... Kg7 {[%clk
0:00:26.1]} 35. Bf3 {[%clk 0:00:52]} 35... Rd3 {[%clk 0:00:24.9]} 36. Rff2
{[%clk 0:00:44.8]} 36... Rxd2+ {[%clk 0:00:22.5]} 37. Rxd2 {[%clk 0:00:45.7]}
37... Be4 {[%clk 0:00:22.4]} 38. Bd1 {[%clk 0:00:40.8]} 38... Bc6 {[%clk
0:00:22.2]} 39. Bc2 {[%clk 0:00:39.2]} 39... Re3 {[%clk 0:00:22]} 40. Bd1 {[%clk
0:00:33.7]} 40... Rg3 {[%clk 0:00:21.7]} 41. Ka3 {[%clk 0:00:30]} 41... Rh3
{[%clk 0:00:21.9]} 42. h5 {[%clk 0:00:29.9]} 42... Rg3 {[%clk 0:00:22.1]} 43.
Rd4 {[%clk 0:00:25.1]} 43... Bf3 {[%clk 0:00:20.6]} 44. Rd3 {[%clk 0:00:23.6]}
44... Bxd1 {[%clk 0:00:17.2]} 45. Rxg3 {[%clk 0:00:23.6]} 45... Kf7 {[%clk
0:00:15.9]} 46. Ka4 {[%clk 0:00:23.6]} 46... e5 {[%clk 0:00:14.4]} 47. Kb5
{[%clk 0:00:23.9]} 47... Bxb3 {[%clk 0:00:13.7]} 48. Rxb3 {[%clk 0:00:23.3]} 1-0

[Event "Late-Titled-Tuesday-Blitz-September-05-2023"]
[Site "Chess.com"]
[Date "2023.09.05"]
[Round "4"]
[White "cthulhuuu"]
[Black "NowInChess"]
[Result "1-0"]
[WhiteElo "2468"]
[BlackElo "2280"]
[TimeControl "180+1"]
[EndTime "14:39:49 PDT"]
[Termination "cthulhuuu won on time"]

1. e4 {[%clk 0:02:58.1]} 1... e6 {[%clk 0:02:59.9]} 2. d3 {[%clk 0:02:58.3]}
2... d5 {[%clk 0:03:00.5]} 3. Nd2 {[%clk 0:02:59.2]} 3... Nf6 {[%clk 0:03:00.5]}
4. Ngf3 {[%clk 0:02:59.5]} 4... Nc6 {[%clk 0:02:59.6]} 5. c3 {[%clk 0:02:59.6]}
5... e5 {[%clk 0:02:47.8]} 6. exd5 {[%clk 0:02:56.1]} 6... Qxd5 {[%clk
0:02:42.2]} 7. Nc4 {[%clk 0:02:49.9]} 7... Bg4 {[%clk 0:02:32.6]} 8. Be2 {[%clk
0:02:49.6]} 8... O-O-O {[%clk 0:02:20.5]} 9. O-O {[%clk 0:02:43.5]} 9... h5
{[%clk 0:02:06.3]} 10. h3 {[%clk 0:02:28.7]} 10... Bf5 {[%clk 0:02:02.5]} 11.
Ne3 {[%clk 0:02:23.7]} 11... Qd7 {[%clk 0:01:56.7]} 12. Qa4 {[%clk 0:02:21.7]}
12... Be6 {[%clk 0:01:40]} 13. Ng5 {[%clk 0:02:17.3]} 13... Bc5 {[%clk
0:01:38.5]} 14. b4 {[%clk 0:02:12.5]} 14... Bb6 {[%clk 0:01:29.4]} 15. Bf3
{[%clk 0:02:08.1]} 15... Kb8 {[%clk 0:01:20.9]} 16. Bxc6 {[%clk 0:02:02]} 16...
bxc6 {[%clk 0:01:15]} 17. Nxe6 {[%clk 0:01:51.5]} 17... Qxe6 {[%clk 0:01:11.9]}
18. Nc4 {[%clk 0:01:46.6]} 18... Rxd3 {[%clk 0:01:04.6]} 19. Na5 {[%clk
0:01:40.2]} 19... Rxc3 {[%clk 0:00:43.9]} 20. Bd2 {[%clk 0:01:30.6]} 20... Rc4
{[%clk 0:00:27.2]} 21. Nxc4 {[%clk 0:01:30]} 21... Qxc4 {[%clk 0:00:28.1]} 22.
Rac1 {[%clk 0:01:28.7]} 22... Qb5 {[%clk 0:00:28]} 23. Qb3 {[%clk 0:01:25.9]}
23... Ne4 {[%clk 0:00:19.3]} 24. Be3 {[%clk 0:01:25.8]} 24... Bxe3 {[%clk
0:00:18.9]} 25. Qxe3 {[%clk 0:01:25.4]} 25... f5 {[%clk 0:00:16.7]} 26. a4
{[%clk 0:01:23.9]} 26... Qb6 {[%clk 0:00:14.5]} 27. Qxb6+ {[%clk 0:01:07.2]}
27... cxb6 {[%clk 0:00:14.6]} 28. Rxc6 {[%clk 0:01:07.3]} 28... Rd8 {[%clk
0:00:12.9]} 29. Rfc1 {[%clk 0:01:04.4]} 29... Rd7 {[%clk 0:00:13.1]} 30. Re6
{[%clk 0:01:01.6]} 30... Nf6 {[%clk 0:00:04]} 31. Rxe5 {[%clk 0:00:59.7]} 31...
g6 {[%clk 0:00:04.3]} 32. Re6 {[%clk 0:00:57.2]} 32... Rf7 {[%clk 0:00:04.4]}
33. Rcc6 {[%clk 0:00:52.3]} 33... Ne4 {[%clk 0:00:03.9]} 34. Rxg6 {[%clk
0:00:51.5]} 34... Rd7 {[%clk 0:00:04.4]} 35. b5 {[%clk 0:00:41.8]} 35... Rd1+
{[%clk 0:00:03.9]} 36. Kh2 {[%clk 0:00:41.7]} 36... Nxf2 {[%clk 0:00:02.6]} 37.
Rg8+ {[%clk 0:00:39.3]} 37... Kb7 {[%clk 0:00:02.8]} 38. Rg7+ {[%clk 0:00:35.8]}
38... Kb8 {[%clk 0:00:02.5]} 39. Rh6 {[%clk 0:00:28]} 39... Rd8 {[%clk
0:00:01.7]} 40. Rxh5 {[%clk 0:00:26.9]} 40... f4 {[%clk 0:00:01.8]} 41. Rhh7
{[%clk 0:00:23.1]} 1-0

[Event "Late-Titled-Tuesday-Blitz-September-05-2023"]
[Site "Chess.com"]
[Date "2023.09.05"]
[Round "4"]
[White "nitpicker"]
[Black "Keaton87"]
[Result "0-1"]
[WhiteElo "2270"]
[BlackElo "2614"]
[TimeControl "180+1"]
[EndTime "14:39:53 PDT"]
[Termination "Keaton87 won on time"]

1. d4 {[%clk 0:03:00.9]} 1... Nf6 {[%clk 0:02:57.5]} 2. c4 {[%clk 0:02:59.2]}
2... g6 {[%clk 0:02:57.2]} 3. Nc3 {[%clk 0:02:57.7]} 3... Bg7 {[%clk 0:02:55.2]}
4. e4 {[%clk 0:02:57.7]} 4... d6 {[%clk 0:02:55.3]} 5. Be2 {[%clk 0:02:57.8]}
5... Nbd7 {[%clk 0:02:54.9]} 6. Nf3 {[%clk 0:02:56.3]} 6... O-O {[%clk
0:02:53.5]} 7. Be3 {[%clk 0:02:56.4]} 7... e5 {[%clk 0:02:49.7]} 8. d5 {[%clk
0:02:55.7]} 8... Nc5 {[%clk 0:02:46]} 9. Nd2 {[%clk 0:02:52.2]} 9... a5 {[%clk
0:02:44.3]} 10. a3 {[%clk 0:02:52.5]} 10... a4 {[%clk 0:02:38.9]} 11. Bxc5
{[%clk 0:02:49.3]} 11... dxc5 {[%clk 0:02:39.1]} 12. Nxa4 {[%clk 0:02:49.4]}
12... b6 {[%clk 0:02:37.5]} 13. b4 {[%clk 0:02:35.4]} 13... Bd7 {[%clk
0:02:22.7]} 14. Nc3 {[%clk 0:02:32.4]} 14... Qe7 {[%clk 0:02:22.6]} 15. Rb1
{[%clk 0:02:21.3]} 15... Rxa3 {[%clk 0:02:20.9]} 16. Nb5 {[%clk 0:01:55.9]}
16... Bxb5 {[%clk 0:02:19.3]} 17. cxb5 {[%clk 0:01:56.3]} 17... cxb4 {[%clk
0:02:19.7]} 18. O-O {[%clk 0:01:52.3]} 18... Bh6 {[%clk 0:02:16.2]} 19. Nc4
{[%clk 0:01:19]} 19... Rc3 {[%clk 0:02:15.6]} 20. d6 {[%clk 0:01:07.2]} 20...
cxd6 {[%clk 0:02:13.8]} 21. Nxb6 {[%clk 0:01:01.2]} 21... Qc7 {[%clk 0:01:59.1]}
22. Nd5 {[%clk 0:00:55.4]} 22... Nxd5 {[%clk 0:01:58.4]} 23. Qxd5 {[%clk
0:00:52.1]} 23... Qc5 {[%clk 0:01:55]} 24. Rfd1 {[%clk 0:00:49.1]} 24... Rc2
{[%clk 0:01:54.2]} 25. Kf1 {[%clk 0:00:29.8]} 25... Qxd5 {[%clk 0:01:16.2]} 26.
Rxd5 {[%clk 0:00:28.7]} 26... Ra8 {[%clk 0:01:06.7]} 27. b6 {[%clk 0:00:26.6]}
27... Bd2 {[%clk 0:00:47.8]} 28. Rxd6 {[%clk 0:00:20.4]} 28... Kg7 {[%clk
0:00:42.9]} 29. b7 {[%clk 0:00:19.3]} 29... Rb8 {[%clk 0:00:43.1]} 30. Ba6
{[%clk 0:00:19.3]} 30... Ra2 {[%clk 0:00:40.1]} 31. Rb6 {[%clk 0:00:17.8]} 31...
Bc3 {[%clk 0:00:39.2]} 32. Rd1 {[%clk 0:00:16.2]} 32... Bd4 {[%clk 0:00:39.2]}
33. Rc6 {[%clk 0:00:15.2]} 33... Rxf2+ {[%clk 0:00:38.1]} 34. Ke1 {[%clk
0:00:14.8]} 34... Ra2 {[%clk 0:00:20.4]} 35. Rc8 {[%clk 0:00:14.1]} 35... Ba7
{[%clk 0:00:18.8]} 36. Rxb8 {[%clk 0:00:11.7]} 36... Bxb8 {[%clk 0:00:19.7]} 37.
Bb5 {[%clk 0:00:09.8]} 37... b3 {[%clk 0:00:18.2]} 38. Bc4 {[%clk 0:00:08.1]}
38... Ra7 {[%clk 0:00:17]} 39. Bd5 {[%clk 0:00:08.3]} 39... b2 {[%clk
0:00:15.7]} 40. Kd2 {[%clk 0:00:05.9]} 40... Ra1 {[%clk 0:00:14]} 0-1

[Event "Late-Titled-Tuesday-Blitz-September-05-2023"]
[Site "Chess.com"]
[Date "2023.09.05"]
[Round "4"]
[White "Firouzja2003"]
[Black "sergoy"]
[Result "1-0"]
[WhiteElo "3123"]
[BlackElo "2899"]
[TimeControl "180+1"]
[EndTime "14:39:54 PDT"]
[Termination "Firouzja2003 won by resignation"]

1. e4 {[%clk 0:03:00.9]} 1... c5 {[%clk 0:03:00.1]} 2. Nf3 {[%clk 0:03:00.8]}
2... d6 {[%clk 0:03:00.8]} 3. d4 {[%clk 0:03:00.8]} 3... cxd4 {[%clk 0:03:01.7]}
4. Nxd4 {[%clk 0:03:01.1]} 4... Nf6 {[%clk 0:03:02.4]} 5. Nc3 {[%clk 0:03:01.5]}
5... a6 {[%clk 0:03:03.1]} 6. Bg5 {[%clk 0:02:59.3]} 6... e6 {[%clk 0:03:02.7]}
7. Qd2 {[%clk 0:02:59.4]} 7... h6 {[%clk 0:02:57.3]} 8. Be3 {[%clk 0:02:51.3]}
8... b5 {[%clk 0:02:54.1]} 9. f3 {[%clk 0:02:51.2]} 9... Bb7 {[%clk 0:02:53.6]}
10. O-O-O {[%clk 0:02:47.6]} 10... Nbd7 {[%clk 0:02:53]} 11. Kb1 {[%clk
0:02:46.4]} 11... Qc7 {[%clk 0:02:52.7]} 12. Bxb5 {[%clk 0:02:27.5]} 12... axb5
{[%clk 0:02:38.1]} 13. Ndxb5 {[%clk 0:02:28.4]} 13... Qb8 {[%clk 0:02:37.5]} 14.
Nxd6+ {[%clk 0:02:26.8]} 14... Bxd6 {[%clk 0:02:38.2]} 15. Qxd6 {[%clk
0:02:27.5]} 15... Qxd6 {[%clk 0:02:34.3]} 16. Rxd6 {[%clk 0:02:27.9]} 16... Ke7
{[%clk 0:02:33.9]} 17. Rhd1 {[%clk 0:02:22.6]} 17... Rhc8 {[%clk 0:02:34.5]} 18.
R6d4 {[%clk 0:02:03.9]} 18... Bc6 {[%clk 0:02:23.5]} 19. b3 {[%clk 0:02:00.1]}
19... g5 {[%clk 0:02:20.6]} 20. Kb2 {[%clk 0:01:58]} 20... Rab8 {[%clk
0:02:18.4]} 21. a4 {[%clk 0:01:36.7]} 21... Ra8 {[%clk 0:01:08.4]} 22. Bf2
{[%clk 0:01:18]} 22... Ne5 {[%clk 0:00:59.8]} 23. Na2 {[%clk 0:00:57.4]} 23...
Nfd7 {[%clk 0:00:54]} 24. Nb4 {[%clk 0:00:56]} 24... Bxa4 {[%clk 0:00:25.5]} 25.
bxa4 {[%clk 0:00:47.7]} 25... Nc5 {[%clk 0:00:25.7]} 26. Ra1 {[%clk 0:00:38.9]}
26... Nxa4+ {[%clk 0:00:18]} 27. Kc1 {[%clk 0:00:39.2]} 27... Nc5 {[%clk
0:00:13.2]} 28. Rxa8 {[%clk 0:00:39.2]} 28... Rxa8 {[%clk 0:00:14.1]} 29. Bg3
{[%clk 0:00:36.4]} 29... f6 {[%clk 0:00:11.5]} 30. Bxe5 {[%clk 0:00:31.7]} 30...
fxe5 {[%clk 0:00:12.4]} 31. Nc6+ {[%clk 0:00:28.8]} 31... Kf6 {[%clk 0:00:11.4]}
32. Rc4 {[%clk 0:00:29.3]} 32... Ra1+ {[%clk 0:00:10.1]} 33. Kb2 {[%clk
0:00:26.6]} 33... Rg1 {[%clk 0:00:07.2]} 34. Rxc5 {[%clk 0:00:26.9]} 34... Rxg2
{[%clk 0:00:07.5]} 35. Nxe5 {[%clk 0:00:27.4]} 35... h5 {[%clk 0:00:08.1]} 36.
h3 {[%clk 0:00:17]} 36... Rg3 {[%clk 0:00:08]} 37. Kc3 {[%clk 0:00:17.3]} 37...
Rxh3 {[%clk 0:00:07.9]} 38. Kd4 {[%clk 0:00:17.9]} 38... Rg3 {[%clk 0:00:08.1]}
39. Rc7 {[%clk 0:00:17.7]} 39... g4 {[%clk 0:00:02.1]} 40. f4 {[%clk 0:00:17.5]}
1-0

[Event "Late-Titled-Tuesday-Blitz-September-05-2023"]
[Site "Chess.com"]
[Date "2023.09.05"]
[Round "4"]
[White "Bauman_Guy"]
[Black "Jospem"]
[Result "1-0"]
[WhiteElo "2889"]
[BlackElo "3032"]
[TimeControl "180+1"]
[EndTime "14:39:55 PDT"]
[Termination "Bauman_Guy won by checkmate"]

1. e4 {[%clk 0:03:00.9]} 1... c5 {[%clk 0:03:00.1]} 2. Nf3 {[%clk 0:03:01.2]}
2... d6 {[%clk 0:03:00.2]} 3. d4 {[%clk 0:03:01.9]} 3... cxd4 {[%clk 0:03:01.1]}
4. Nxd4 {[%clk 0:03:02.7]} 4... a6 {[%clk 0:03:02]} 5. Nc3 {[%clk 0:03:02.5]}
5... e6 {[%clk 0:03:02.4]} 6. g4 {[%clk 0:03:01.8]} 6... b5 {[%clk 0:03:01.7]}
7. a3 {[%clk 0:03:00.1]} 7... Bb7 {[%clk 0:03:02.1]} 8. h4 {[%clk 0:02:54.5]}
8... Ne7 {[%clk 0:03:02.2]} 9. g5 {[%clk 0:02:51.9]} 9... Nec6 {[%clk
0:03:02.6]} 10. Be3 {[%clk 0:02:51.8]} 10... Nxd4 {[%clk 0:03:00.8]} 11. Qxd4
{[%clk 0:02:51.6]} 11... Nc6 {[%clk 0:03:01.1]} 12. Qd2 {[%clk 0:02:51.8]} 12...
Qc7 {[%clk 0:02:59.8]} 13. h5 {[%clk 0:02:50.7]} 13... Be7 {[%clk 0:02:58.2]}
14. O-O-O {[%clk 0:02:48.3]} 14... b4 {[%clk 0:02:51.4]} 15. axb4 {[%clk
0:02:46.4]} 15... Nxb4 {[%clk 0:02:52.3]} 16. Kb1 {[%clk 0:02:40.8]} 16... Rb8
{[%clk 0:02:39.7]} 17. Rh3 {[%clk 0:02:32.4]} 17... Qa5 {[%clk 0:01:49]} 18. Bc4
{[%clk 0:02:30.4]} 18... Bc8 {[%clk 0:01:30.9]} 19. Bb3 {[%clk 0:02:10.7]} 19...
e5 {[%clk 0:01:22.6]} 20. Rf3 {[%clk 0:02:03.5]} 20... Be6 {[%clk 0:01:13.5]}
21. Nd5 {[%clk 0:02:02.4]} 21... Bxd5 {[%clk 0:00:58.7]} 22. Bxd5 {[%clk
0:02:01]} 22... Rf8 {[%clk 0:00:55.4]} 23. Ba7 {[%clk 0:01:42.4]} 23... Rb5
{[%clk 0:00:51.5]} 24. Ra3 {[%clk 0:01:14.7]} 24... Qc7 {[%clk 0:00:49.2]} 25.
c4 {[%clk 0:01:08.4]} 25... Rb6 {[%clk 0:00:31.9]} 26. Bxb6 {[%clk 0:01:04.1]}
26... Qxb6 {[%clk 0:00:32.8]} 27. f4 {[%clk 0:00:46.3]} 27... exf4 {[%clk
0:00:25.6]} 28. Qxf4 {[%clk 0:00:45.7]} 28... a5 {[%clk 0:00:25.9]} 29. Rf3
{[%clk 0:00:43.4]} 29... Kd8 {[%clk 0:00:23.8]} 30. e5 {[%clk 0:00:40.4]} 30...
Kc7 {[%clk 0:00:24.4]} 31. Bxf7 {[%clk 0:00:32.9]} 31... dxe5 {[%clk 0:00:21.5]}
32. Qxe5+ {[%clk 0:00:31.6]} 32... Bd6 {[%clk 0:00:22.3]} 33. Qxg7 {[%clk
0:00:27.8]} 33... Kb8 {[%clk 0:00:22.8]} 34. Rf6 {[%clk 0:00:21.5]} 34... Qc7
{[%clk 0:00:12.2]} 35. Rdxd6 {[%clk 0:00:18.1]} 35... Re8 {[%clk 0:00:12.3]} 36.
Bxe8 {[%clk 0:00:10.7]} 36... Qxg7 {[%clk 0:00:12.1]} 37. Rd8+ {[%clk
0:00:11.4]} 37... Kc7 {[%clk 0:00:11.7]} 38. Rd7+ {[%clk 0:00:12.3]} 38... Qxd7
{[%clk 0:00:12.5]} 39. Bxd7 {[%clk 0:00:13.2]} 39... h6 {[%clk 0:00:12.1]} 40.
Rxh6 {[%clk 0:00:13.7]} 40... Kxd7 {[%clk 0:00:12.5]} 41. g6 {[%clk 0:00:14.3]}
41... Nd3 {[%clk 0:00:13.4]} 42. g7 {[%clk 0:00:14.5]} 42... Ne5 {[%clk
0:00:14.3]} 43. g8=Q {[%clk 0:00:14.7]} 43... Nc6 {[%clk 0:00:15.2]} 44. Qg7+
{[%clk 0:00:15.1]} 44... Ne7 {[%clk 0:00:16.1]} 45. Rh7 {[%clk 0:00:15.3]} 45...
Kc6 {[%clk 0:00:17]} 46. Qxe7 {[%clk 0:00:15.7]} 46... Kb6 {[%clk 0:00:17.2]}
47. Qd6# {[%clk 0:00:15.9]} 1-0